lending/lending_fUSD_20250913
["ID","MTS","AMOUNT","RATE_DAILY","PERIOD"]
[385363389,1757790843358,-976.5,0.00032876,2]
[385363390,1757790843368,-714.21,0.00032876,2]
[385363391,1757790843377,-1200.51,0.00032876,2]
[385363392,1757790843387,-429.54,0.00032876,2]
[385363393,1757790843397,-931.9,0.00032876,2]
[385363394,1757790843406,-867.52,0.00032876,2]
[385363395,1757790843416,-767.06,0.00032876,2]
[385363396,1757790843425,-522.36,0.00032876,2]
[385363397,1757790843435,-464.29,0.00032876,2]
[385363398,1757790843444,-1050.24,0.00032876,2]
[385363399,1757790843453,-712.0,0.00032876,2]
[385363400,1757790843463,-770.1,0.00032876,2]
[385363401,1757790843472,-1340.61,0.00032876,2]
[385363402,1757790843481,-744.56,0.00032876,2]
[385363403,1757790843491,-503.78,0.00032876,2]
[385363404,1757790843501,-933.78,0.00032876,2]
[385363405,1757790843514,-917.05,0.00032876,2]
[385363406,1757790843524,-601.03,0.00032876,2]
[385363407,1757790843533,-1166.06,0.00032876,2]
[385363408,1757790843543,-408.67,0.00032876,2]
[385363409,1757790843553,-744.95,0.00032876,2]
[385363410,1757790843562,-962.63,0.00032876,2]
[385363411,1757790843571,-944.97,0.00032876,2]
[385363412,1757790843581,-697.23,0.00032876,2]
[385363413,1757790843591,-1128.5,0.00032876,2]
[385363414,1757790843602,-1287.15,0.00032876,2]
[385363415,1757790843611,-1140.31,0.00032876,2]
[385363416,1757790843620,-550.0,0.00032876,120]
[385363417,1757790843630,-550.0,0.00032876,120]
[385363418,1757790843639,-550.0,0.00032876,120]
[385363419,1757790843648,-550.0,0.00032876,120]
[385363420,1757790843658,-550.0,0.00032876,120]
[385363421,1757790843667,-550.0,0.00032876,120]
[385363422,1757790843676,-550.0,0.00032876,120]
[385363423,1757790843686,-550.0,0.00032876,120]
[385363424,1757790843695,-550.0,0.00032876,120]
[385363425,1757790843704,-550.0,0.00032876,120]
[385363426,1757790843713,-550.0,0.00032876,120]
[385363427,1757790843723,-550.0,0.00032876,120]
[385363428,1757790843732,-550.0,0.00032876,120]
[385363429,1757790843741,-883.84,0.00032876,2]
[385363430,1757790843750,-550.0,0.00032876,120]
[385363431,1757790843760,-1121.16,0.00032876,2]
[385363432,1757790843769,-550.0,0.00032876,120]
[385363433,1757790843778,-550.0,0.00032876,120]
[385363434,1757790843787,-550.0,0.00032876,120]
[385363435,1757790843796,-550.0,0.00032876,120]
[385363436,1757790843805,-550.0,0.00032876,120]
[385363437,1757790843815,-550.0,0.00032876,120]
[385363438,1757790843824,-550.0,0.00032876,120]
[385363439,1757790843833,-400.0,0.00032876,2]
[385363440,1757790843843,-513.88,0.00032876,2]
[385363441,1757790843852,-766.79,0.00032876,2]
[385363442,1757790843861,-836.28,0.00032876,2]
[385363443,1757790843870,-400.0,0.00032876,2]
[385363444,1757790843879,-1062.97,0.00032876,2]
[385363445,1757790843888,-701.46,0.00032876,2]
[385363446,1757790843898,-1010.43,0.00032876,2]
[385363447,1757790843907,-618.9,0.00032876,2]
[385363448,1757790843917,-740.73,0.00032876,2]
[385363449,1757790843926,-411.16366113,0.00032876,2]
[385363450,1757790843936,-617.0,0.00032876,2]
[385363451,1757790843945,-955.87,0.00032876,2]
[385363452,1757790843956,-400.0,0.00032876,2]
[385363453,1757790843965,-1394.15,0.00032876,2]
[385363454,1757790843975,-645.46,0.00032876,2]
[385363455,1757790843984,-475.16,0.00032876,2]
[385363456,1757790843994,-1201.25,0.00032876,2]
[385363457,1757790844003,-1420.48,0.00032876,2]
[385363458,1757790844014,-436.7,0.00032876,2]
[385363459,1757790844023,-886.97,0.00032876,2]
[385363460,1757790844033,-695.44,0.00032876,2]
[385363461,1757790844042,-1459.76,0.00032876,2]
[385363462,1757790844052,-869.21,0.00032876,2]
[385363463,1757790844062,-563.58,0.00032876,2]
[385363464,1757790844071,-565.26,0.00032876,2]
[385363465,1757790844081,-1134.89,0.00032876,2]
[385363466,1757790844091,-404.56,0.00032876,2]
[385363467,1757790844101,-734.93,0.00032876,2]
[385363468,1757790844110,-1149.23,0.00032876,2]
[385363469,1757790844119,-1190.66,0.00032876,2]
[385363470,1757790844128,-656.39,0.00032876,2]
[385363471,1757790844138,-1130.2,0.00032876,2]
[385363472,1757790844148,-914.37,0.00032876,2]
[385363473,1757790844275,-869.45,0.00032876,2]
[385363474,1757790844285,-459.11,0.00032876,2]
[385363475,1757790844295,-1022.06,0.00032876,2]
[385363476,1757790844305,-279.40663096,0.00032876,2]
[385363477,1757790844314,-516.71,0.00032876,2]
[385363478,1757790844324,-400.0,0.00032876,2]
[385363479,1757790844333,-1379.73,0.00032876,2]
[385363480,1757790844343,-899.94,0.00032876,2]
[385363481,1757790844353,-866.46,0.00032876,2]
[385363482,1757790844363,-556.4,0.00032876,2]
[385363483,1757790844372,-164.52885609,0.00032876,2]
[385363484,1757790844381,-1195.99,0.00032876,2]
[385363485,1757790844390,-518.54,0.00032876,2]
[385363486,1757790844400,-1740.08,0.00032876,2]
[385363487,1757790844409,-1006.76,0.00032876,2]
[385363488,1757790844418,-668.89,0.00032876,2]
[385363489,1757790844428,-529.54,0.00032876,2]
[385363490,1757790844438,-927.44,0.00032876,2]
[385363491,1757790844447,-662.77,0.00032876,2]
[385363492,1757790844456,-586.65,0.00032876,2]
[385363493,1757790844466,-744.19,0.00032876,2]
[385363494,1757790844475,-899.11,0.00032876,2]
[385363495,1757790844484,-770.78,0.00032876,2]
[385363496,1757790844493,-714.15,0.00032876,2]
[385363497,1757790844503,-644.35,0.00032876,2]
[385363498,1757790844516,-453.23,0.00032876,2]
[385363499,1757790844525,-1002.56,0.00032876,2]
[385363500,1757790844535,-809.12,0.00032876,2]
[385363501,1757790844545,-490.46220203,0.00032876,2]
[385363502,1757790844555,-864.64,0.00032876,2]
[385363503,1757790844565,-836.53,0.00032876,2]
[385363504,1757790844574,-400.0,0.00032876,2]
[385363505,1757790844583,-297.34127456,0.00032876,2]
[385363506,1757790844593,-800.39,0.00032876,2]
[385363507,1757790844602,-759.84,0.00032876,2]
[385363508,1757790844612,-438.06,0.00032876,2]
[385363509,1757790844622,-1067.29,0.00032876,2]
[385363510,1757790844631,-483.11,0.00032876,2]
[385363511,1757790844642,-890.46,0.00032876,2]
[385363512,1757790844651,-621.88,0.00032876,2]
[385363513,1757790844660,-1123.98,0.00032876,2]
[385363514,1757790844669,-440.32,0.00032876,2]
[385363515,1757790844678,-2863.78,0.00032876,2]
[385363516,1757790844687,-757.94,0.00032876,2]
[385363517,1757790844696,-433.33478342,0.00032876,2]
[385363518,1757790844705,-557.63,0.00032876,2]
[385363519,1757790844714,-861.65,0.00032876,2]
[385363520,1757790844723,-803.76,0.00032876,2]
[385363521,1757790844731,-835.94,0.00032876,2]
[385363522,1757790844740,-434.25,0.00032876,2]
[385363523,1757790844749,-578.44,0.00032876,2]
[385363524,1757790844758,-550.07,0.00032876,2]
[385363525,1757790844768,-800.87,0.00032876,2]
[385363526,1757790844777,-400.0,0.00032876,2]
[385363527,1757790844786,-541.06,0.00032876,2]
[385363528,1757790844795,-400.0,0.00032876,2]
[385363529,1757790844803,-652.82,0.00032876,2]
[385363530,1757790844812,-444.79148566,0.00032876,2]
[385363531,1757790844821,-423.72,0.00032876,2]
[385363532,1757790844831,-1300.44,0.00032876,2]
[385363533,1757790844840,-439.16,0.00032876,2]
[385363534,1757790844849,-826.3,0.00032876,2]
[385363535,1757790844858,-787.45,0.00032876,2]
[385363536,1757790844867,-535.57,0.00032876,2]
[385363537,1757790844876,-800.47,0.00032876,2]
[385363538,1757790844885,-1253.6,0.00032876,2]
[385363539,1757790844894,-544.69,0.00032876,2]
[385363540,1757790844903,-944.98,0.00032876,2]
[385363541,1757790844912,-556.97,0.00032876,2]
[385363542,1757790844922,-652.8,0.00032876,2]
[385363543,1757790844931,-489.49,0.00032876,2]
[385363544,1757790844939,-842.01,0.00032876,2]
[385363545,1757790844949,-1082.49,0.00032876,2]
[385363546,1757790844958,-1148.48,0.00032876,120]
[385363547,1757790844967,-439.06,0.00032876,2]
[385363548,1757790844976,-589.14,0.00032876,2]
[385363549,1757790844985,-890.6,0.00032876,2]
[385363550,1757790844995,-583.29,0.00032876,2]
[385363551,1757790845004,-708.58,0.00032876,2]
[385363552,1757790845014,-531.52,0.00032876,2]
[385363553,1757790845023,-1252.15,0.00032876,2]
[385363554,1757790845032,-947.61,0.00032876,2]
[385363555,1757790845041,-217.39578064,0.00032876,2]
[385363556,1757790845050,-1050.56,0.00032876,2]
[385363557,1757790845060,-872.42,0.00032876,2]
[385363558,1757790845069,-791.71,0.00032876,2]
[385363559,1757790845078,-407.96,0.00032876,2]
[385363560,1757790845087,-400.0,0.00032876,2]
[385363561,1757790845096,-983.81,0.00032876,2]
[385363562,1757790845105,-868.8,0.00032876,2]
[385363563,1757790845114,-846.53,0.00032876,2]
[385363564,1757790845123,-2593.64,0.00032876,2]
[385363565,1757790845132,-730.89,0.00032876,2]
[385363566,1757790845141,-785.21,0.00032876,2]
[385363567,1757790845150,-447.29,0.00032876,2]
[385363568,1757790845159,-964.92,0.00032876,2]
[385363569,1757790845168,-189.59598592,0.00032876,2]
[385363570,1757790845177,-428.63,0.00032876,2]
[385363571,1757790845185,-759.47,0.00032876,2]
[385363572,1757790845194,-620.45,0.00032876,2]
[385363573,1757790845203,-862.8,0.00032876,2]
[385363574,1757790845212,-505.66,0.00032876,2]
[385363575,1757790845221,-537.7,0.00032876,2]
[385363576,1757790845230,-427.09,0.00032876,2]
[385363577,1757790845238,-400.0,0.00032876,2]
[385363578,1757790845247,-400.0,0.00032876,2]
[385363579,1757790845256,-1263.32,0.00032876,2]
[385363580,1757790845266,-400.0,0.00032876,2]
[385363581,1757790845275,-786.15,0.00032876,2]
[385363582,1757790845284,-442.82957037,0.00032876,2]
[385363583,1757790845294,-769.42,0.00032876,2]
[385363584,1757790845303,-4665.54,0.00032876,2]
[385363585,1757790845314,-958.92,0.00032876,2]
[385363586,1757790845323,-1162.64,0.00032876,2]
[385363587,1757790845332,-843.12,0.00032876,2]
[385363588,1757790845341,-830.89,0.00032876,2]
[385363589,1757790845351,-871.15,0.00032876,2]
[385363590,1757790845359,-484.74,0.00032876,2]
[385363591,1757790845368,-1106.22,0.00032876,2]
[385363592,1757790845377,-582.6,0.00032876,2]
[385363593,1757790845386,-1197.3,0.00032876,2]
[385363594,1757790845395,-3316.79,0.00032876,2]
[385363595,1757790845404,-235.07455327,0.00032876,2]
[385363596,1757790845413,-898.38,0.00032876,2]
[385363597,1757790845422,-744.46,0.00032876,2]
[385363598,1757790845431,-1081.81,0.00032876,2]
[385363599,1757790845440,-1406.57,0.00032876,2]
[385363600,1757790845449,-420.47,0.00032876,2]
[385363601,1757790845459,-2017.53,0.00032876,2]
[385363602,1757790845468,-752.16,0.00032876,2]
[385363603,1757790845477,-843.08,0.00032876,2]
[385363604,1757790845487,-729.82,0.00032876,2]
[385363605,1757790845496,-924.42,0.00032876,2]
[385363606,1757790845509,-715.39,0.00032876,2]
[385363607,1757790845518,-1791.52,0.00032876,2]
[385363608,1757790845527,-905.52,0.00032876,2]
[385363609,1757790845537,-1035.92,0.00032876,2]
[385363610,1757790845546,-405.71,0.00032876,2]
[385363611,1757790845557,-543.24,0.00032876,2]
[385363612,1757790845566,-1125.91,0.00032876,2]
[385363613,1757790845576,-897.14,0.00032876,2]
[385363614,1757790845585,-405.06,0.00032876,2]
[385363615,1757790845595,-838.71,0.00032876,2]
[385363616,1757790845604,-778.35,0.00032876,2]
[385363617,1757790845614,-519.54,0.00032876,2]
[385363618,1757790845623,-1097.98,0.00032876,2]
[385363619,1757790845632,-812.08,0.00032876,2]
[385363620,1757790845641,-746.12,0.00032876,2]
[385363621,1757790845651,-1172.1,0.00032876,2]
[385363622,1757790845660,-400.0,0.00032876,2]
[385363623,1757790845670,-1004.56,0.00032876,2]
[385363624,1757790845679,-1550.32,0.00032876,2]
[385363625,1757790845688,-406.12,0.00032876,2]
[385363626,1757790845698,-738.83,0.00032876,2]
[385363627,1757790845707,-1445.07,0.00032876,2]
[385363628,1757790845716,-250.57068339,0.00032876,2]
[385363629,1757790845725,-681.1,0.00032876,2]
[385363630,1757790845735,-1822.15,0.00032876,2]
[385363631,1757790845744,-417.32,0.00032876,2]
[385363632,1757790845753,-1015.89,0.00032876,2]
[385363633,1757790845762,-636.43,0.00032876,2]
[385363634,1757790845771,-983.53,0.00032876,2]
[385363635,1757790845781,-722.69,0.00032876,2]
[385363636,1757790845790,-670.74,0.00032876,2]
[385363637,1757790845799,-458.09,0.00032876,2]
[385363638,1757790845809,-589.72,0.00032876,2]
[385363639,1757790845818,-761.25,0.00032876,2]
[385363640,1757790845828,-411.62,0.00032876,2]
[385363641,1757790845838,-422.08,0.00032876,2]
[385363642,1757790845847,-1393.14,0.00032876,2]
[385363643,1757790845856,-281.62,0.00032876,2]
[385363644,1757790845866,-208.72,0.00032876,2]
[385363645,1757790845880,-1836.39,0.00032876,2]
[385363646,1757790845890,-1286.51,0.00032876,2]
[385363647,1757790845900,-806.89,0.00032876,2]
[385363648,1757790845909,-1118.88,0.00032876,2]
[385363649,1757790845918,-862.09,0.00032876,2]
[385363650,1757790845928,-3209.32,0.00032876,2]
[385363651,1757790845937,-2346.72,0.00032876,2]
[385363652,1757790845946,-1033.98,0.00032876,2]
[385363653,1757790845956,-400.0,0.00032876,2]
[385363654,1757790845965,-896.46,0.00032876,2]
[385363655,1757790845974,-524.85,0.00032876,2]
[385363656,1757790845984,-837.65,0.00032876,2]
[385363657,1757790845993,-941.17,0.00032876,2]
[385363658,1757790846003,-702.99,0.00032876,2]
[385363659,1757790846013,-1450.08,0.00032876,2]
[385363660,1757790846022,-872.8,0.00032876,2]
[385363661,1757790846031,-727.17,0.00032876,2]
[385363662,1757790846040,-711.83,0.00032876,2]
[385363663,1757790846050,-765.36,0.00032876,2]
[385363664,1757790846059,-778.2,0.00032876,2]
[385363665,1757790846068,-980.63,0.00032876,2]
[385363666,1757790846077,-2033.09,0.00032876,2]
[385363667,1757790846086,-677.3,0.00032876,2]
[385363668,1757790846096,-538.72,0.00032876,2]
[385363669,1757790846106,-1183.03,0.00032876,2]
[385363670,1757790846116,-722.19,0.00032876,2]
[385363671,1757790846125,-1015.48,0.00032876,2]
[385363672,1757790846135,-965.24,0.00032876,2]
[385363673,1757790846144,-599.03,0.00032876,2]
[385363674,1757790846154,-653.28,0.00032876,2]
[385363675,1757790846163,-974.74,0.00032876,2]
[385363676,1757790846173,-532.11,0.00032876,2]
[385363677,1757790846183,-775.6,0.00032876,2]
[385363678,1757790846193,-1047.99,0.00032876,2]
[385363679,1757790846203,-867.54,0.00032876,2]
[385363680,1757790846215,-741.23,0.00032876,2]
[385363681,1757790846224,-603.59,0.00032876,2]
[385363682,1757790846235,-1243.58,0.00032876,2]
[385363683,1757790846244,-2266.8,0.00032876,2]
[385363684,1757790846253,-835.84,0.00032876,2]
[385363685,1757790846262,-605.54,0.00032876,2]
[385363686,1757790846272,-526.24,0.00032876,2]
[385363687,1757790846282,-502.15,0.00032876,2]
[385363688,1757790846291,-462.88,0.00032876,2]
[385363689,1757790846300,-495.47,0.00032876,2]
[385363690,1757790846310,-2089.21,0.00032876,2]
[385363691,1757790846319,-1484.39,0.00032876,2]
[385363692,1757790846329,-858.84,0.00032876,2]
[385363693,1757790846339,-708.83,0.00032876,2]
[385363694,1757790846348,-1139.82,0.00032876,2]
[385363695,1757790846357,-676.37,0.00032876,2]
[385363696,1757790846367,-920.38,0.00032876,2]
[385363697,1757790846376,-785.36,0.00032876,2]
[385363698,1757790846386,-400.0,0.00032876,2]
[385363699,1757790846395,-1042.18,0.00032876,2]
[385363700,1757790846404,-714.23,0.00032876,2]
[385363701,1757790846414,-894.39,0.00032876,2]
[385363702,1757790846423,-647.42,0.00032876,2]
[385363703,1757790846433,-513.3,0.00032876,2]
[385363704,1757790846442,-924.41,0.00032876,2]
[385363705,1757790846451,-857.85,0.00032876,2]
[385363706,1757790846460,-2338.03,0.00032876,2]
[385363707,1757790846470,-841.74,0.00032876,2]
[385363708,1757790846479,-722.3,0.00032876,2]
[385363709,1757790846488,-814.0,0.00032876,2]
[385363710,1757790846497,-767.19,0.00032876,2]
[385363711,1757790846511,-415.27,0.00032876,2]
[385363712,1757790846522,-1469.88,0.00032876,2]
[385363713,1757790846531,-1229.51,0.00032876,2]
[385363714,1757790846541,-449.16,0.00032876,2]
[385363715,1757790846550,-1485.88,0.00032876,2]
[385363716,1757790846560,-844.21,0.00032876,2]
[385363717,1757790846570,-2265.68,0.00032876,2]
[385363718,1757790846580,-865.66,0.00032876,2]
[385363719,1757790846593,-863.57,0.00032876,2]
[385363720,1757790846603,-572.0,0.00032876,2]
[385363721,1757790846613,-2112.49,0.00032876,2]
[385363722,1757790846623,-510.21,0.00032876,2]
[385363723,1757790846633,-1107.28,0.00032876,2]
[385363724,1757790846643,-1170.47,0.00032876,2]
[385363725,1757790846652,-841.3,0.00032876,2]
[385363726,1757790846662,-856.96,0.00032876,2]
[385363727,1757790846671,-1028.51,0.00032876,2]
[385363728,1757790846681,-906.61,0.00032876,2]
[385363729,1757790846690,-1458.58,0.00032876,2]
[385363730,1757790846700,-1006.96,0.00032876,2]
[385363731,1757790846709,-701.85,0.00032876,2]
[385363732,1757790846719,-4256.1,0.00032876,2]
[385363733,1757790846729,-728.15,0.00032876,2]
[385363734,1757790846739,-925.96,0.00032876,2]
[385363735,1757790846749,-400.0,0.00032876,2]
[385363736,1757790846758,-445.69,0.00032876,2]
[385363737,1757790846768,-1198.57,0.00032876,2]
[385363738,1757790846778,-1974.67,0.00032876,2]
[385363739,1757790846787,-2857.69,0.00032876,2]
[385363740,1757790846796,-847.13,0.00032876,2]
[385363741,1757790846806,-2990.98,0.00032876,2]
[385363742,1757790846815,-400.0,0.00032876,2]
[385363743,1757790846825,-834.58,0.00032876,2]
[385363744,1757790846835,-2302.98,0.00032876,2]
[385363745,1757790846844,-2111.33,0.00032876,2]
[385363746,1757790846853,-1747.56,0.00032876,2]
[385363747,1757790846863,-466.82,0.00032876,2]
[385363748,1757790846872,-400.0,0.00032876,2]
[385363749,1757790846882,-2233.25,0.00032876,2]
[385363750,1757790846891,-1255.2,0.00032876,2]
[385363751,1757790846902,-1963.87,0.00032876,2]
[385363752,1757790846911,-694.91,0.00032876,2]
[385363753,1757790846921,-807.66,0.00032876,2]
[385363754,1757790846930,-927.88,0.00032876,2]
[385363755,1757790846940,-240.86635989,0.00032876,2]
[385363756,1757790846949,-952.59,0.00032876,2]
[385363757,1757790846959,-2263.39,0.00032876,2]
[385363758,1757790846968,-1143.85,0.00032876,2]
[385363759,1757790846977,-931.48,0.00032876,2]
[385363760,1757790846986,-669.04,0.00032876,2]
[385363761,1757790846996,-1333.33,0.00032876,2]
[385363762,1757790847006,-944.31,0.00032876,2]
[385363763,1757790847016,-711.99,0.00032876,2]
[385363764,1757790847025,-1030.24,0.00032876,2]
[385363765,1757790847035,-1798.63,0.00032876,2]
[385363766,1757790847043,-977.53,0.00032876,2]
[385363767,1757790847052,-1079.08,0.00032876,2]
[385363768,1757790847062,-568.52,0.00032876,2]
[385363769,1757790847071,-923.82,0.00032876,2]
[385363770,1757790847080,-1374.51,0.00032876,2]
[385363771,1757790847089,-539.76,0.00032876,2]
[385363772,1757790847099,-532.15,0.00032876,2]
[385363773,1757790847108,-1021.66,0.00032876,2]
[385363774,1757790847117,-400.0,0.00032876,2]
[385363775,1757790847127,-796.82,0.00032876,2]
[385363776,1757790847135,-707.41,0.00032876,2]
[385363777,1757790847145,-923.85,0.00032876,2]
[385363778,1757790847154,-585.84,0.00032876,2]
[385363779,1757790847163,-1683.27,0.00032876,2]
[385363780,1757790847172,-1254.84,0.00032876,2]
[385363781,1757790847181,-786.29,0.00032876,2]
[385363782,1757790847190,-1026.54,0.00032876,2]
[385363783,1757790847201,-492.79,0.00032876,2]
[385363784,1757790847212,-2328.06,0.00032876,2]
[385363785,1757790847221,-1854.12,0.00032876,2]
[385363786,1757790847230,-1159.49,0.00032876,2]
[385363787,1757790847239,-1000.0,0.00032876,2]
[385363788,1757790847248,-1262.94,0.00032876,2]
[385363789,1757790847257,-3059.22,0.00032876,2]
[385363790,1757790847267,-618.58,0.00032876,2]
[385363791,1757790847276,-400.0,0.00032876,2]
[385363792,1757790847285,-666.27,0.00032876,2]
[385363793,1757790847294,-2778.98,0.00032876,2]
[385363794,1757790847303,-1602.35,0.00032876,2]
[385363795,1757790847312,-438.09,0.00032876,2]
[385363796,1757790847322,-344.99,0.00032876,2]
[385363797,1757790847331,-523.76,0.00032876,2]
[385363798,1757790847341,-634.16,0.00032876,2]
[385363799,1757790847351,-887.05,0.00032876,2]
[385363800,1757790847365,-942.86,0.00032876,2]
[385363801,1757790847381,-1448.36,0.00032876,2]
[385363802,1757790847392,-1697.7,0.00032876,2]
[385363803,1757790847402,-655.13,0.00032876,2]
[385363804,1757790847411,-488.5,0.00032876,2]
[385363805,1757790847421,-2431.97,0.00032876,2]
[385363806,1757790847430,-1288.99,0.00032876,2]
[385363807,1757790847440,-693.6,0.00032876,2]
[385363808,1757790847451,-914.74,0.00032876,2]
[385363809,1757790847460,-985.78,0.00032876,2]
[385363810,1757790847470,-734.11,0.00032876,2]
[385363811,1757790847481,-1199.53,0.00032876,2]
[385363812,1757790847490,-492.5,0.00032876,2]
[385363813,1757790847499,-683.66,0.00032876,2]
[385363814,1757790847511,-3119.56,0.00032876,2]
[385363815,1757790847521,-1155.29,0.00032876,2]
[385363816,1757790847530,-869.51,0.00032876,2]
[385363817,1757790847539,-1010.79,0.00032876,2]
[385363818,1757790847549,-655.9,0.00032876,2]
[385363819,1757790847559,-450.64,0.00032876,2]
[385363820,1757790847568,-1130.65,0.00032876,2]
[385363821,1757790847578,-1727.97,0.00032876,2]
[385363822,1757790847588,-971.87,0.00032876,2]
[385363823,1757790847606,-1049.74,0.00032876,2]
[385363824,1757790847615,-536.28,0.00032876,2]
[385363825,1757790847625,-920.05,0.00032876,2]
[385363826,1757790847634,-807.81,0.00032876,2]
[385363827,1757790847644,-1540.01,0.00032876,2]
[385363828,1757790847653,-767.61,0.00032876,2]
[385363829,1757790847662,-843.61,0.00032876,2]
[385363830,1757790847673,-798.34,0.00032876,2]
[385363831,1757790847682,-1507.18,0.00032876,2]
[385363832,1757790847691,-1074.98,0.00032876,2]
[385363833,1757790847700,-721.19,0.00032876,2]
[385363834,1757790847709,-8779.55,0.00032876,2]
[385363835,1757790847718,-1380.97,0.00032876,2]
[385363836,1757790847727,-1003.9,0.00032876,2]
[385363837,1757790847737,-594.63,0.00032876,2]
[385363838,1757790847746,-506.79,0.00032876,2]
[385363839,1757790847755,-649.71,0.00032876,2]
[385363840,1757790847764,-729.26,0.00032876,2]
[385363841,1757790847774,-813.26,0.00032876,2]
[385363842,1757790847783,-500.0,0.00032877,7]
[385363843,1757790847792,-500.0,0.00032877,7]
[385363844,1757790847802,-500.0,0.00032877,7]
[385363845,1757790847812,-500.0,0.00032877,7]
[385363846,1757790847822,-500.0,0.00032877,7]
[385363847,1757790847831,-500.0,0.00032877,7]
[385363848,1757790847840,-500.0,0.00032877,7]
[385363849,1757790847849,-500.0,0.00032877,7]
[385363850,1757790847858,-500.0,0.00032877,7]
[385363851,1757790847868,-500.0,0.00032877,7]
[385363852,1757790847878,-285.82605619,0.00032877,7]
[385363853,1757790847887,-500.0,0.00032877,7]
[385363854,1757790847896,-1685.07328212,0.0003288,30]
[385363855,1757790847905,-1685.07328212,0.0003288,30]
[385363856,1757790847914,-1685.07328212,0.0003288,30]
[385363857,1757790847923,-1685.07328212,0.0003288,30]
[385363858,1757790847932,-1685.07328212,0.0003288,30]
[385363859,1757790847942,-1685.07328212,0.0003288,30]
[385363860,1757790847951,-1685.07328212,0.0003288,30]
[385363861,1757790847960,-1685.07328212,0.0003288,30]
[385363862,1757790847969,-1685.07328212,0.0003288,30]
[385363863,1757790847979,-1685.07328212,0.0003288,30]
[385363864,1757790847988,-1685.07328212,0.0003288,30]
[385363865,1757790847997,-1685.07328212,0.0003288,30]
[385363866,1757790848006,-1685.07328212,0.0003288,30]
[385363867,1757790848015,-1685.07328212,0.0003288,30]
[385363868,1757790848023,-1685.07328212,0.0003288,30]
[385363869,1757790848033,-1685.07328212,0.0003288,30]
[385363870,1757790848042,-1685.07328212,0.0003288,30]
[385363871,1757790848051,-1685.07328212,0.0003288,30]
[385363872,1757790848060,-1685.07328212,0.0003288,30]
[385363873,1757790848069,-1685.07,0.0003288,30]
[385363874,1757790848078,-7356.28626155,0.0003288,30]
[385363875,1757790848087,-7356.28626155,0.0003288,30]
[385363876,1757790848097,-7356.28626155,0.0003288,30]
[385363877,1757790848106,-7356.28626155,0.0003288,30]
[385363878,1757790848115,-7356.28626155,0.0003288,30]
[385363879,1757790848124,-7356.28626155,0.0003288,30]
[385363880,1757790848134,-7356.28626155,0.0003288,30]
[385363881,1757790848143,-7356.28626155,0.0003288,30]
[385363882,1757790848152,-7356.28626155,0.0003288,30]
[385363883,1757790848161,-7356.28626155,0.0003288,30]
[385363884,1757790848171,-7356.28626155,0.0003288,30]
[385363885,1757790848180,-7356.28626155,0.0003288,30]
[385363886,1757790848189,-7356.28626155,0.0003288,30]
[385363887,1757790848198,-7356.28626155,0.0003288,30]
[385363888,1757790848208,-7356.28626155,0.0003288,30]